fUST/lending_fUST_20260304
["ID","MTS","AMOUNT","RATE_DAILY","PERIOD"]
[407642972,1772599838377,-500.0,0.00010591,2]
[407642973,1772599838386,-500.0,0.00010591,2]
[407642974,1772599838395,-500.0,0.00010591,2]
[407642975,1772599838405,-500.0,0.00010591,2]
[407642976,1772599838415,-500.0,0.00010591,2]
[407642977,1772599838424,-500.0,0.00010591,2]
[407642978,1772599838434,-500.0,0.00010591,2]
[407642979,1772599838443,-500.0,0.00010591,2]
[407642980,1772599838452,-500.0,0.00010591,2]
[407642981,1772599838462,-500.0,0.00010591,2]
[407642982,1772599838471,-500.0,0.00010591,2]
[407642983,1772599838481,-500.0,0.00010591,2]
[407642984,1772599838491,-500.0,0.00010591,2]
[407642985,1772599838501,-500.0,0.00010591,2]
[407642986,1772599838510,-500.0,0.00010591,2]
[407642987,1772599838521,-500.0,0.00010591,2]
[407642988,1772599838531,-500.0,0.00010591,2]
[407642989,1772599838540,-500.0,0.00010591,2]
[407642990,1772599838550,-500.0,0.00010591,2]
[407642991,1772599838560,-119.59833406,0.00010591,2]
[407642992,1772599838588,-380.40166594,0.00010591,2]
[407642993,1772599838597,-54.59833406,0.00010591,2]
[407643281,1772599843046,-445.40166594,0.00010591,2]
[407643282,1772599843057,-120.04833406,0.00010591,2]
[407643283,1772599843159,-379.95166594,0.00010591,2]
[407643284,1772599843170,-500.0,0.00010591,2]
[407643285,1772599843180,-500.0,0.00010591,2]
[407643286,1772599843189,-370.89833406,0.00010591,2]
[407643296,1772599846077,-129.10166594,0.00010591,2]
[407643297,1772599846087,-500.0,0.00010591,2]
[407643298,1772599846096,-500.0,0.00010591,2]
[407643299,1772599846105,-500.0,0.00010591,2]
[407643300,1772599846115,-500.0,0.00010591,2]
[407643301,1772599846124,-500.0,0.00010591,2]
[407643302,1772599846135,-500.0,0.00010591,2]
[407643303,1772599846144,-500.0,0.00010591,2]
[407643304,1772599846154,-500.0,0.00010591,2]
[407643305,1772599846163,-541.87773248,0.00010591,2]
[407643306,1772599846172,-500.0,0.00010591,2]
[407643307,1772599846182,-500.0,0.00010591,2]
[407643308,1772599846193,-500.0,0.00010591,2]
[407643309,1772599846202,-500.0,0.00010591,2]
[407643310,1772599846212,-500.0,0.00010591,2]
[407643311,1772599846221,-500.0,0.00010591,2]
[407643312,1772599846230,-500.0,0.00010591,2]
[407643313,1772599846240,-500.0,0.00010591,2]
[407643314,1772599846254,-500.0,0.00010591,2]
[407643315,1772599846266,-757.97023035,0.00010591,2]
[407643316,1772599846289,-757.97023035,0.00010591,2]
[407643317,1772599846300,-757.97023035,0.00010591,2]
[407643318,1772599846309,-757.97023035,0.00010591,2]
[407643319,1772599846319,-757.97023035,0.00010591,2]
[407643320,1772599846328,-757.97023035,0.00010591,2]
[407643321,1772599846338,-757.97023035,0.00010591,2]
[407643322,1772599846347,-33.79405902,0.00010591,2]
[407643327,1772600421214,-5000.0,9.97e-05,2]
[407643328,1772600421236,-560.0,9.97e-05,2]
[407643329,1772600424708,1196.86572347,0.0001,2]
[407643330,1772600518754,-5000.0,9.92e-05,2]
[407643331,1772600650720,160.0,9.444e-05,3]
[407643332,1772600733242,1055.73866296,9.502e-05,2]
[407643336,1772600924751,477035.46819128,9.5e-05,2]
[407643383,1772601032212,-500.0,9.53e-05,2]
[407643384,1772601032222,-343.41387426,9.53e-05,2]
[407643385,1772601032232,-10.9571504,9.7e-05,2]
[407643386,1772601032244,-485.14286738,9.7e-05,2]
[407643387,1772601032254,-200.0,9.802e-05,2]
[407643388,1772601032263,-500.0,9.871e-05,2]
[407643389,1772601032273,-423.7564361,9.89e-05,2]
[407643390,1772601032283,-237.59743321,9.89e-05,2]
[407643391,1772601032294,-392.54,9.89e-05,2]
[407643392,1772601037577,9313.0,5e-05,10]
[407643406,1772601038190,-1022.85479161,9.89e-05,2]
[407643407,1772601038200,-29.63685304,0.00010211,4]
[407643408,1772601038211,-130.36314696,0.00010211,4]
[407643409,1772601038220,-500.0,0.0001039,2]
[407643410,1772601038230,-1200.0,0.00010408,2]
[407643411,1772601038240,-60.32437025,0.00010409,2]
[407643412,1772601038259,-239.67562975,0.00010409,2]
[407643413,1772601038268,-300.0,0.00010409,2]
[407643415,1772601038277,-300.0,0.00010409,2]
[407643416,1772601038287,-103.38937025,0.00010409,2]
[407643477,1772601040703,-129.61062975,0.00010409,2]
[407643478,1772601040713,-156.47737086,0.0001041,2]
[407643663,1772601043376,-77.48937844,0.0001041,2]
[407643664,1772601043386,-365.20747274,0.0001041,2]
[407643665,1772601043396,-1552.93467502,0.0001041,2]
[407643666,1772601043407,-585.75366434,0.0001041,2]
[407643679,1772601046165,-2759.15013017,0.0001041,2]
[407643680,1772601046175,-114409.9745357,0.000105,2]
[407643681,1772601046274,-50221.81353459,0.000105,2]
[407643684,1772601603232,227.57,6.9e-05,2]
[407643730,1772602232347,-1215.16235003,0.00010306,2]
[407643838,1772602238547,-2715.20752276,0.00010306,2]
[407643839,1772602238556,-488.65556181,0.00010358,2]
[407643840,1772602238566,-200.0,0.0001041,2]
[407643841,1772602238576,-300.0,0.00010456,2]
[407643842,1772602238587,-300.0,0.00010456,2]
[407643843,1772602238597,-1200.0,0.00010456,2]
[407643844,1772602238607,-7291.5736171,0.00010457,2]
[407643845,1772602238616,-3155.4998038,0.00010457,2]
[407643846,1772602238626,-15640.11961179,0.000105,2]
[407643859,1772602243576,-3154.61136444,0.000105,2]
[407643864,1772602246381,-2000.0,0.000105,2]
[407643865,1772602262639,-843.09585024,0.00010395,2]
[407643866,1772602342313,230.41,0.000157,120]
[407643868,1772602614067,1064.0,9.502e-05,2]
[407643869,1772602802425,150.21,6.9e-05,2]
[407643870,1772602802716,150.21,7e-05,2]
[407643871,1772602803006,150.21,7.1e-05,2]
[407643872,1772602803287,150.21,7.1e-05,2]
[407643873,1772602803612,150.21,7.2e-05,2]
[407643874,1772602803890,150.21,7.3e-05,2]
[407643875,1772602804162,150.21,7.4e-05,2]
[407643876,1772602804436,150.21,7.4e-05,2]
[407643877,1772602804715,150.21,7.5e-05,2]
[407643879,1772602804993,150.21,7.6e-05,2]
[407643881,1772602836421,5000.0,9.502e-05,2]
[407643882,1772602858050,2711.71895151,9.502e-05,2]
[407643885,1772603015742,5000.0,9.502e-05,2]
[407643886,1772603032275,5000.0,9.502e-05,2]
[407643887,1772603040074,4156.90414976,9.502e-05,2]
[407643889,1772603218710,1680.12722241,9.502e-05,2]
[407643890,1772603248624,5000.0,9.502e-05,2]
[407643891,1772603270587,5000.0,9.502e-05,2]
[407643892,1772603292896,5000.0,9.502e-05,2]
[407643893,1772603315320,5000.0,9.502e-05,2]
[407643894,1772603327237,10000.0,9.219e-05,2]
[407643895,1772603338035,5000.0,9.502e-05,2]
[407643897,1772603359722,5000.0,9.502e-05,2]
[407643898,1772603402802,173.76,6.9e-05,2]
[407643899,1772603403332,5000.0,9.502e-05,2]
[407643900,1772603403726,173.76,7.6e-05,2]
[407643901,1772603425457,5000.0,9.502e-05,2]
[407643929,1772603432340,-300.0,9.557e-05,2]
[407643931,1772603432350,-778.08916142,9.557e-05,2]
[407643933,1772603432361,-276.36,9.557e-05,2]
[407643935,1772603432403,-13.55083858,9.557e-05,2]
[407643936,1772603432412,-368.97619611,9.558e-05,2]
[407643937,1772603432421,-664.15715299,9.558e-05,2]
[407643938,1772603432430,-1180.72382755,9.558e-05,2]
[407643939,1772603432439,-1844.88098054,9.558e-05,2]
[407643940,1772603432449,-2653.97198337,9.558e-05,2]
[407643941,1772603432458,-245.34990015,9.558e-05,2]
[407643942,1772603432465,-441.62982027,9.558e-05,2]
[407643943,1772603432474,-785.11968049,9.558e-05,2]
[407643944,1772603432483,-1225.52275126,9.558e-05,2]
[407643945,1772603432492,-485.73622353,9.668e-05,2]
[407643946,1772603432501,-200.0,9.89e-05,2]
[407643947,1772603432510,-362.7,0.0001,2]
[407643948,1772603432519,-1988.97088551,0.00010095,2]
[407643949,1772603432527,-394.52782061,0.00010095,2]
[407643950,1772603432538,-997.32222237,0.00010095,2]
[407643951,1772603432554,-838.46526302,0.00010095,2]
[407643952,1772603432563,-210.56803231,0.00010095,2]
[407643954,1772603432572,-716.50763926,0.00010172,2]
[407643955,1772603432582,-246.02114521,0.0001026,2]
[407643957,1772603432593,-2262.85060342,0.0001026,2]
[407643959,1772603432602,-500.0,0.00010317,2]
[407643961,1772603432612,-180.58946587,0.00010343,2]
[407643963,1772603432621,-272.9542302,0.00010356,2]
[407643965,1772603432630,-208.95668498,0.00010356,2]
[407643967,1772603432639,-500.0,0.00010372,2]
[407643969,1772603432648,-500.0,0.00010427,2]
[407643971,1772603432657,-500.0,0.00010447,2]
[407643973,1772603432667,-500.0,0.00010447,2]
[407643975,1772603432676,-500.0,0.00010447,2]
[407643977,1772603432685,-500.0,0.00010447,2]
[407643979,1772603432696,-500.0,0.00010447,2]
[407643981,1772603432705,-500.0,0.00010447,2]
[407643983,1772603432714,-289.85524197,0.00010447,2]
[407643985,1772603432724,-500.0,0.00010447,2]
[407643987,1772603432737,-500.0,0.00010447,2]
[407643989,1772603432746,-500.0,0.00010447,2]
[407643991,1772603432755,-215.96226779,0.00010447,2]
[407644117,1772603434336,5000.0,9.502e-05,2]
[407644130,1772603438573,-284.03773221,0.00010447,2]
[407644131,1772603438582,-500.0,0.00010447,2]
[407644132,1772603438592,-500.0,0.00010447,2]
[407644133,1772603438602,-500.0,0.00010447,2]
[407644134,1772603438611,-500.0,0.00010447,2]
[407644135,1772603438620,-437.03076132,0.00010447,2]
[407644136,1772603438630,-539.97583454,0.00010447,2]
[407644137,1772603438639,-571.31471976,0.00010447,2]
[407644138,1772603438650,-500.0,0.00010447,2]
[407644139,1772603438659,-209.2250219,0.00010447,2]
[407644140,1772603438668,-500.0,0.00010447,2]
[407644141,1772603438677,-500.0,0.00010447,2]
[407644142,1772603438687,-500.0,0.00010447,2]
[407644143,1772603438696,-300.0,0.00010447,2]
[407644144,1772603438706,-500.0,0.00010447,2]
[407644145,1772603438716,-500.0,0.00010447,2]
[407644146,1772603438726,-500.0,0.00010447,2]
[407644147,1772603438738,-500.0,0.00010447,2]
[407644148,1772603438747,-500.0,0.00010447,2]
[407644149,1772603438756,-500.0,0.00010447,2]
[407644150,1772603438767,-500.0,0.00010447,2]
[407644151,1772603438776,-500.0,0.00010447,2]
[407644152,1772603438785,-500.0,0.00010447,2]
[407644153,1772603438794,-500.0,0.00010447,2]
[407644154,1772603438806,-500.0,0.00010447,2]
[407644155,1772603438816,-170.92617412,0.00010447,2]
[407644156,1772603438825,-500.0,0.00010447,2]
[407644157,1772603438834,-500.0,0.00010447,2]
[407644158,1772603438843,-500.0,0.00010447,2]
[407644159,1772603438852,-500.0,0.00010447,2]
[407644160,1772603438862,-309.07480093,0.00010447,2]
[407644161,1772603438871,-500.0,0.00010447,2]
[407644162,1772603438881,-500.0,0.00010447,2]
[407644163,1772603438890,-500.0,0.00010447,2]
[407644164,1772603438899,-500.0,0.00010447,2]
[407644165,1772603438908,-500.0,0.00010447,2]
[407644166,1772603438917,-383.27685186,0.00010447,2]
[407644167,1772603438926,-500.0,0.00010447,2]
[407644168,1772603438935,-500.0,0.00010447,2]
[407644169,1772603438944,-500.0,0.00010447,2]
[407644170,1772603438954,-500.0,0.00010447,2]
[407644171,1772603438964,-500.0,0.00010447,2]
[407644172,1772603438974,-500.0,0.00010447,2]
[407644173,1772603438983,-500.0,0.00010447,2]
[407644174,1772603438992,-500.0,0.00010447,2]
[407644175,1772603439002,-500.0,0.00010447,2]
[407644176,1772603439011,-500.0,0.00010447,2]
[407644177,1772603439021,-500.0,0.00010447,2]
[407644178,1772603439031,-500.0,0.00010447,2]
[407644179,1772603439043,-500.0,0.00010447,2]
[407644180,1772603439052,-500.0,0.00010447,2]
[407644181,1772603439063,-500.0,0.00010447,2]
[407644182,1772603439072,-500.0,0.00010447,2]
[407644183,1772603439084,-500.0,0.00010447,2]
[407644184,1772603439094,-500.0,0.00010447,2]
[407644185,1772603439105,-500.0,0.00010447,2]
[407644186,1772603439115,-500.0,0.00010447,2]
[407644187,1772603439127,-500.0,0.00010447,2]
[407644188,1772603439137,-500.0,0.00010447,2]
[407644189,1772603439147,-500.0,0.00010447,2]
[407644190,1772603439159,-500.0,0.00010447,2]
[407644191,1772603439168,-500.0,0.00010447,2]
[407644192,1772603439178,-500.0,0.00010447,2]
[407644193,1772603439189,-500.0,0.00010447,2]
[407644194,1772603439202,-500.0,0.00010447,2]
[407644195,1772603439212,-500.0,0.00010447,2]
[407644196,1772603439221,-500.0,0.00010447,2]
[407644197,1772603439231,-500.0,0.00010447,2]
[407644198,1772603439240,-500.0,0.00010447,2]
[407644199,1772603439250,-500.0,0.00010447,2]
[407644200,1772603439260,-500.0,0.00010447,2]
[407644201,1772603439270,-500.0,0.00010447,2]
[407644202,1772603439281,-500.0,0.00010447,2]
[407644203,1772603439292,-500.0,0.00010447,2]
[407644204,1772603439304,-500.0,0.00010447,2]
[407644205,1772603439315,-1732.19413443,0.0001045,2]
[407644206,1772603439326,-13611.7345678,0.00010453,2]
[407644207,1772603439336,-500.0,0.00010481,2]
[407644208,1772603439347,-428.23491584,0.00010494,2]
[407644209,1772603439357,-43275.6588245,0.000105,2]
[407644362,1772603443632,-382.35591491,0.00010447,2]
[407644365,1772603444466,-658.83621924,0.00010447,2]
[407644366,1772603444478,-511.74254087,0.00010447,2]
[407644367,1772603444488,-1011.15245913,0.000105,2]
[407644370,1772603447091,-3877.07546754,0.000105,2]
[407644371,1772603490855,5000.0,0.000157,120]
[407644373,1772603716680,607.0714008,0.00015,120]
[407644377,1772603920779,-143.45766222,9.823e-05,2]
[407644378,1772603920793,-3213.08467556,9.823e-05,2]
[407644379,1772603920804,-143.45766222,9.828e-05,3]
[407644418,1772603958840,-1071.30394147,9.823e-05,2]
[407644419,1772603958886,-313.93445484,9.823e-05,2]
[407644422,1772604062375,-143.45766222,9.823e-05,2]
[407644423,1772604062415,-8.9762955,9.823e-05,2]
[407644424,1772604062571,-549.0237045,9.823e-05,2]
[407644425,1772604091814,-152.43395772,9.823e-05,2]
[407644427,1772604233146,-500.0,0.0004067,120]
[407644428,1772604233200,-3000.0,0.0004067,120]
[407644429,1772604233250,-3118.0,0.0004067,120]
[407644430,1772604233298,-4690.33242774,0.0004067,60]
[407644431,1772604233346,-410.23994829,0.0004067,120]
[407644432,1772604233398,-3886.65405981,0.0004067,120]
[407644433,1772604233447,-4120.0,0.0004067,120]
[407644434,1772604233498,-44999.95,0.0004067,30]
[407644435,1772604233549,-148637.82792077,0.0004067,30]
[407644436,1772604233598,-1373133.00077552,0.0004067,30]
[407644437,1772604233647,-284089.43964762,0.0004067,30]
[407644438,1772604233695,-215.48460838,0.0004067,120]
[407644439,1772604233745,-716.9186,0.0004067,120]
[407644440,1772604233795,-716.9186,0.0004067,120]
[407644441,1772604233844,-716.9186,0.0004067,120]
[407644442,1772604233893,-716.9186,0.0004067,120]
[407644443,1772604233941,-716.9186,0.0004067,120]
[407644444,1772604233993,-685.0708,0.0004067,120]
[407644445,1772604234040,-685.0708,0.0004067,120]
[407644446,1772604234087,-685.0708,0.0004067,120]
[407644447,1772604234135,-614.6866,0.0004067,120]
[407644448,1772604234182,-614.6866,0.0004067,120]
[407644449,1772604234229,-614.6866,0.0004067,120]
[407644450,1772604234278,-721.8578,0.0004067,120]
[407644451,1772604234326,-797.42652,0.0004067,60]
[407644452,1772604234376,-311.5417,0.0004067,60]
[407644453,1772604234427,-797.42652,0.0004067,60]
[407644454,1772604234478,-797.42652,0.0004067,60]
[407644455,1772604234527,-797.42652,0.0004067,60]
[407644456,1772604234574,-797.42652,0.0004067,60]
[407644457,1772604234622,-3000.0,0.0004067,120]
[407644458,1772604234670,-3018.90337309,0.0004067,120]
[407644459,1772604234719,-1856.44629112,0.0004067,30]
[407644460,1772604234769,-291.66191245,0.0004067,120]
[407644461,1772604234817,-1578.31488734,0.0004067,30]
[407644462,1772604234866,-1252.11556162,0.0004067,30]
[407644463,1772604234913,-973.84820128,0.0004067,120]
[407644464,1772604234961,-1096.7693411,0.0004067,60]
[407644465,1772604235009,-735.14502101,0.0004067,120]
[407644466,1772604235057,-785.9045333,0.0004067,30]
[407644467,1772604235107,-1175.30373058,0.0004067,120]
[407644468,1772604235156,-1450.34070245,0.0004067,120]
[407644469,1772604235208,-1948.17352499,0.0004067,30]
[407644470,1772604235256,-1071.69344209,0.0004067,120]
[407644471,1772604235304,-1512.8196997,0.0004067,120]
[407644472,1772604235351,-1530.39529707,0.0004067,120]
[407644473,1772604235398,-1164.41328849,0.0004067,120]
[407644474,1772604235446,-939.20481236,0.0004067,120]
[407644475,1772604235497,-1604.17319391,0.0004067,120]
[407644476,1772604235547,-1965.77989141,0.0004067,60]
[407644477,1772604235599,-1249.8698892,0.0004067,30]
[407644478,1772604235648,-555.24291747,0.0004067,120]
[407644479,1772604235697,-228.80189607,0.0004067,120]
[407644480,1772604235745,-335.70199332,0.0004067,120]
[407644481,1772604235794,-188.67085769,0.0004067,30]
[407644482,1772604235846,-539.29302965,0.0004067,30]
[407644483,1772604235897,-1002.69913048,0.0004067,30]
[407644484,1772604235948,-579.12016422,0.0004067,120]
[407644485,1772604235998,-172.16187578,0.0004067,120]
[407644486,1772604236050,-214.38712512,0.0004067,30]
[407644487,1772604236102,-2118.16691606,0.0004067,120]
[407644488,1772604236153,-1053.5444186,0.0004067,120]
[407644489,1772604236205,-1595.97256719,0.0004067,30]
[407644490,1772604236255,-1000.0,0.0004067,30]
[407644491,1772604236303,-375.11765096,0.0004067,120]
[407644492,1772604236350,-364.90458146,0.0004067,120]
[407644493,1772604236401,-1868.57966448,0.0004067,120]
[407644494,1772604236452,-561.15341602,0.0004067,120]
[407644495,1772604236504,-180.78591169,0.0004067,120]
[407644496,1772604236552,-1049.27636791,0.0004067,60]
[407644497,1772604236603,-517.25627004,0.0004067,120]
[407644498,1772604236653,-78063.23657282,0.0004067,30]
[407644499,1772604236943,-1271.04005289,0.0004067,60]
[407644500,1772604236996,-202.67922404,0.0004067,120]
[407644501,1772604237044,-483.92746069,0.0004067,120]
[407644502,1772604237092,-2074.09796892,0.0004067,120]
[407644503,1772604237140,-165.75848871,0.0004067,120]
[407644504,1772604237187,-1032.51481894,0.0004067,30]
[407644505,1772604237235,-345.04013729,0.0004067,30]
[407644506,1772604237282,-159.68357515,0.0004067,30]
[407644507,1772604237328,-1023.63989779,0.0004067,120]
[407644508,1772604237377,-1024.70399477,0.0004067,120]
[407644509,1772604237427,-200.0,0.0004067,120]
[407644510,1772604237477,-161.68274916,0.0004067,120]
[407644511,1772604237528,-1118.26574176,0.0004067,120]
[407644512,1772604237579,-293.6608415,0.0004067,30]
[407644513,1772604237630,-159.28395599,0.0004067,30]
[407644514,1772604237681,-7000.0,0.0004067,30]
[407644515,1772604237732,-1549.0,0.0004067,60]
[407644516,1772604237785,-200.0,0.0004067,120]
[407644517,1772604237838,-500.0,0.0004067,120]
[407644518,1772604237888,-400.0,0.0004067,120]
[407644519,1772604237936,-1561.5011122,0.0004067,120]
[407644520,1772604237987,-3859.32902895,0.0004067,120]
[407644521,1772604238036,-5047.23096414,0.0004067,40]
[407644522,1772604238086,-162.49719,0.0004067,60]
[407644523,1772604238143,-4640.0,0.0004067,120]
[407644524,1772604238193,-67500.0,0.0004067,120]
[407644525,1772604238243,-125561.51206022,0.0004067,120]
[407644526,1772604238292,-284.5,0.0004067,120]
[407644527,1772604238342,-337.23867931,0.0004067,120]
[407644528,1772604238390,-535.0,0.0004067,120]
[407644529,1772604238439,-227.04851622,0.0004067,120]
[407644530,1772604238488,-2000.0,0.0004067,120]
[407644531,1772604238539,-2000.0,0.0004067,120]
[407644532,1772604238590,-2000.0,0.0004067,120]
[407644533,1772604238639,-2000.0,0.0004067,120]
[407644534,1772604238687,-2000.0,0.0004067,120]
[407644535,1772604238735,-2000.0,0.0004067,120]
[407644536,1772604238783,-2000.0,0.0004067,120]
[407644537,1772604238833,-2000.0,0.0004067,120]
[407644538,1772604238884,-2000.0,0.0004067,120]
[407644539,1772604238932,-2000.0,0.0004067,120]
[407644540,1772604238983,-1000.0,0.0004067,120]
[407644541,1772604239032,-1000.0,0.0004067,120]
[407644542,1772604239085,-1000.0,0.0004067,120]
[407644543,1772604239139,-1000.0,0.0004067,120]
[407644544,1772604239187,-1000.0,0.0004067,120]
[407644545,1772604239244,-1000.0,0.0004067,120]
[407644546,1772604239291,-1000.0,0.0004067,120]
[407644547,1772604239340,-1000.0,0.0004067,120]
[407644548,1772604239392,-1000.0,0.0004067,120]
[407644549,1772604239440,-1000.0,0.0004067,120]
[407644550,1772604239491,-877.0,0.0004067,120]
[407644551,1772604239542,-134011.50601566,0.0004067,30]
[407644552,1772604239593,-668.0,0.0004067,120]
[407644553,1772604239646,-1861.14322391,0.0004067,120]
[407644554,1772604239695,-2000.0,0.0004067,120]
[407644555,1772604239746,-2000.0,0.0004067,120]
[407644556,1772604239797,-2000.0,0.0004067,120]
[407644557,1772604239846,-2000.0,0.0004067,120]
[407644558,1772604239896,-2000.0,0.0004067,120]
[407644559,1772604239945,-2000.0,0.0004067,120]
[407644560,1772604239998,-180.19425811,0.0004067,120]
[407644561,1772604240049,-1104.0,0.0004067,30]
[407644562,1772604240102,-2000.0,0.0004067,120]
[407644563,1772604240157,-1320.93212906,0.0004067,120]
[407644564,1772604240209,-5456.0,0.0004067,30]
[407644565,1772604240264,-221.52429015,0.0004067,120]
[407644566,1772604240314,-4903.6388765,0.0004067,120]
[407644567,1772604240367,-279.03628334,0.0004067,120]
[407644568,1772604240419,-1863.45407765,0.0004067,120]
[407644569,1772604240472,-544.3909403,0.0004067,30]
[407644570,1772604240526,-959.11453913,0.0004067,120]
[407644571,1772604240580,-25000.0,0.0004067,120]
[407644572,1772604240637,-970.92289672,0.0004067,120]
[407644573,1772604240692,-1000.0,0.0004067,30]
[407644574,1772604240745,-1609.69561147,0.0004067,120]
[407644575,1772604240795,-196.94,0.0004067,120]
[407644576,1772604240847,-3034.05283,0.0004067,120]
[407644577,1772604240899,-9601.942279,0.0004067,120]
[407644578,1772604240949,-171.0,0.0004067,120]
[407644579,1772604241006,-10233.45482342,0.0004067,30]
[407644580,1772604241061,-5000.0,0.0004067,30]
[407644581,1772604241114,-5000.0,0.0004067,60]
[407644582,1772604241166,-1231.6,0.0004067,45]
[407644583,1772604241218,-205.115,0.0004067,120]
[407644584,1772604241269,-118043.82057271,0.0004067,30]
[407644585,1772604241320,-190326.60336755,0.0004067,30]
[407644586,1772604241370,-80298.15970072,0.0004067,30]
[407644587,1772604241422,-760125.74227563,0.0004067,30]
[407644588,1772604241473,-109319.4423789,0.0004067,30]
[407644589,1772604241527,-720507.86307491,0.0004067,45]
[407644590,1772604241581,-797618.09304927,0.0004067,30]
[407644591,1772604241630,-5464.3705212,0.0004067,120]
[407644592,1772604241682,-9255.23671804,0.0004067,120]
[407644593,1772604241731,-5000.0,0.0004067,120]
[407644594,1772604241781,-161800.48026959,0.0004067,45]
[407644595,1772604241829,-6342.569488,0.0004067,120]
[407644596,1772604241887,-165268.42216817,0.0004067,30]
[407644597,1772604241940,-105958.9074988,0.0004067,30]
[407644598,1772604242000,-30695.96043255,0.0004067,30]
[407644599,1772604242050,-201867.65166422,0.0004067,30]
[407644600,1772604242102,-1300318.38327912,0.0004067,45]
[407644601,1772604242156,-1014247.97522891,0.0004067,30]
[407644602,1772604242208,-236.57179007,0.0004067,120]
[407644603,1772604242261,-1745.41638627,0.0004067,120]
[407644604,1772604242598,-8904.0,0.0004067,120]
[407644605,1772604242648,-6227.0,0.0004067,120]
[407644606,1772604242694,-3581.59877165,0.0004067,120]
[407644607,1772604242749,-2025.40459059,0.0004067,120]
[407644608,1772604242800,-1995.61182012,0.0004067,120]
[407644609,1772604242851,-154.62390984,0.0004067,120]
[407644610,1772604242901,-229.34292685,0.0004067,30]
[407644611,1772604242953,-322.24120965,0.0004067,30]
[407644612,1772604243003,-649.76066687,0.0004067,30]
[407644613,1772604243052,-362.53522166,0.0004067,120]
[407644614,1772604243102,-1679.69587609,0.0004067,60]
[407644615,1772604243152,-1306.24405083,0.0004067,120]
[407644616,1772604243200,-685.07038128,0.0004067,30]
[407644617,1772604243247,-3600.0,0.0004067,30]
[407644618,1772604243295,-1549.1089572,0.0004067,120]
[407644619,1772604243342,-417.3051983,0.0004067,120]
[407644620,1772604243392,-4950.0,0.0004067,120]
[407644621,1772604243440,-13000.0,0.0004067,120]
[407644622,1772604243491,-155.7094786,0.0004067,120]
[407644623,1772604243545,-440.17511064,0.0004067,120]
[407644624,1772604243598,-5000.0,0.0004067,120]
[407644625,1772604243649,-5000.0,0.0004067,90]
[407644626,1772604243699,-5000.0,0.0004067,60]
[407644627,1772604243751,-5000.0,0.0004067,60]
[407644628,1772604243804,-5000.0,0.0004067,60]
[407644629,1772604243854,-5000.0,0.0004067,30]
[407644630,1772604243902,-5000.0,0.0004067,30]
[407644631,1772604243952,-8617.41,0.0004067,30]
[407644632,1772604244003,-3097.12991276,0.0004067,30]
[407644633,1772604244050,-3240.0,0.0004067,120]
[407644634,1772604244099,-100000.0,0.0004067,60]
[407644635,1772604244149,-13958.0,0.0004067,120]
[407644636,1772604244200,-312559.15285452,0.0004067,120]
[407644637,1772604244251,-244.52812907,0.0004067,30]
[407644638,1772604244302,-636.73,0.0004067,120]
[407644639,1772604244350,-189313.77992607,0.0004067,120]
[407645158,1772604263587,-433985.04007393,0.0004067,120]
[407645160,1772604263643,-3614.69360008,0.0004067,120]
[407645162,1772604263701,-200.0,0.0004067,120]
[407645164,1772604263766,-200.0,0.0004067,120]
[407645167,1772604263829,-200.0,0.0004067,120]
[407645169,1772604263890,-220.51336,0.0004067,120]
[407645170,1772604263951,-10000.0,0.0004067,60]
[407645173,1772604264016,-973.53989715,0.0004067,120]
[407645175,1772604264077,-1026.19531589,0.0004067,120]
[407645177,1772604264140,-501.12,0.0004067,120]
[407645178,1772604264199,-1000.0,0.0004067,120]
[407645180,1772604264257,-500000.0,0.0004067,120]
[407645183,1772604264316,-1690.4678482,0.0004067,120]
[407645185,1772604264377,-45033.89896164,0.0004067,60]
[407645187,1772604264436,-578.0,0.0004067,30]